fUSD/lending_fUSD_20250818
["ID","MTS","AMOUNT","RATE_DAILY","PERIOD"]
[380082073,1755531593232,-400.0,0.00030684,120]
[380082074,1755531593281,-400.0,0.00030684,120]
[380082075,1755531593331,-400.0,0.00030684,120]
[380082076,1755531593377,-400.0,0.00030684,120]
[380082077,1755531593423,-7818.05,0.00030684,120]
[380082078,1755531593468,-400.0,0.00030684,120]
[380082079,1755531593512,-400.0,0.00030684,120]
[380082080,1755531593559,-400.0,0.00030684,120]
[380082081,1755531593604,-400.0,0.00030684,120]
[380082082,1755531593648,-2192.69,0.00030684,120]
[380082083,1755531593692,-1719.17,0.00030684,120]
[380082084,1755531593736,-400.0,0.00030684,120]
[380082085,1755531593778,-400.0,0.00030684,120]
[380082086,1755531593821,-400.0,0.00030684,120]
[380082087,1755531593866,-400.0,0.00030684,120]
[380082088,1755531593908,-453.06,0.00030684,120]
[380082089,1755531593953,-623.55,0.00030684,120]
[380082090,1755531593997,-663.5,0.00030684,120]
[380082091,1755531594042,-599.71,0.00030684,120]
[380082092,1755531594086,-954.45,0.00030684,120]
[380082093,1755531594131,-400.0,0.00030684,120]
[380082094,1755531594449,-400.0,0.00030684,120]
[380082095,1755531594498,-7999.44,0.00030684,120]
[380082096,1755531594547,-1065.95,0.00030684,120]
[380082097,1755531594595,-400.0,0.00030684,120]
[380082098,1755531594639,-1783.6,0.00030684,120]
[380082099,1755531594690,-400.0,0.00030684,120]
[380082100,1755531594734,-1276.28,0.00030684,120]
[380082101,1755531594779,-711.22,0.00030684,120]
[380082102,1755531594823,-856.05,0.00030684,120]
[380082103,1755531594867,-400.0,0.00030684,120]
[380082104,1755531594910,-913.78,0.00030684,120]
[380082105,1755531594965,-971.97,0.00030684,120]
[380082106,1755531595011,-400.0,0.00030684,120]
[380082107,1755531595058,-1727.56,0.00030684,120]
[380082108,1755531595105,-400.0,0.00030684,120]
[380082109,1755531595151,-998.0,0.00030684,120]
[380082110,1755531595196,-2835.46,0.00030684,120]
[380082111,1755531595242,-400.0,0.00030684,120]
[380082112,1755531595292,-524.64,0.00030684,120]
[380082113,1755531595341,-400.0,0.00030684,120]
[380082114,1755531595390,-400.0,0.00030684,120]
[380082115,1755531595437,-400.0,0.00030684,120]
[380082116,1755531595487,-454.94,0.00030684,120]
[380082117,1755531595535,-3930.35,0.00030684,120]
[380082118,1755531595581,-1870.62,0.00030684,120]
[380082119,1755531595630,-4673.47,0.00030684,120]
[380082120,1755531595679,-812.33,0.00030684,120]
[380082121,1755531595737,-400.0,0.00030684,120]
[380082122,1755531595796,-400.0,0.00030684,120]
[380082123,1755531595852,-1607.07,0.00030684,120]
[380082124,1755531595899,-1953.1,0.00030684,120]
[380082125,1755531595951,-459.32,0.00030684,120]
[380082126,1755531595997,-1057.81,0.00030684,120]
[380082127,1755531596045,-400.0,0.00030684,120]
[380082128,1755531596094,-852.5,0.00030684,120]
[380082129,1755531596141,-400.0,0.00030684,120]
[380082130,1755531596188,-555.31,0.00030684,120]
[380082131,1755531596232,-400.0,0.00030684,120]
[380082132,1755531596281,-400.0,0.00030684,120]
[380082133,1755531596330,-2141.21,0.00030684,120]
[380082134,1755531596378,-414.08,0.00030684,120]
[380082135,1755531596427,-400.0,0.00030684,120]
[380082136,1755531596474,-400.0,0.00030684,120]
[380082137,1755531596520,-400.0,0.00030684,120]
[380082138,1755531596567,-820.63,0.00030684,120]
[380082139,1755531596613,-531.79,0.00030684,120]
[380082140,1755531596660,-4375.75,0.00030684,120]
[380082141,1755531596707,-1509.44,0.00030684,120]
[380082142,1755531596753,-499.24,0.00030684,120]
[380082143,1755531596799,-938.44,0.00030684,120]
[380082144,1755531596843,-689.65,0.00030684,120]
[380082145,1755531596898,-795.49,0.00030684,120]
[380082146,1755531596944,-1055.35,0.00030684,120]
[380082147,1755531596991,-400.0,0.00030684,120]
[380082148,1755531597040,-11349.52,0.00030684,120]
[380082149,1755531597087,-400.0,0.00030684,120]
[380082150,1755531597135,-415.03,0.00030684,120]
[380082151,1755531597181,-878.19,0.00030684,120]
[380082152,1755531597229,-400.0,0.00030684,120]
[380082153,1755531597275,-400.0,0.00030684,120]
[380082154,1755531597320,-400.0,0.00030684,120]
[380082155,1755531597367,-555.87,0.00030684,120]
[380082156,1755531597414,-1362.08,0.00030684,120]
[380082157,1755531597460,-400.0,0.00030684,120]
[380082158,1755531597505,-2424.39,0.00030684,120]
[380082159,1755531597552,-400.0,0.00030684,120]
[380082160,1755531597597,-655.76,0.00030684,120]
[380082161,1755531597643,-400.0,0.00030684,120]
[380082162,1755531597688,-787.43,0.00030684,120]
[380082163,1755531597733,-422.14,0.00030684,120]
[380082164,1755531597787,-400.0,0.00030684,120]
[380082165,1755531597852,-406.83,0.00030684,120]
[380082166,1755531597900,-400.0,0.00030684,120]
[380082167,1755531598013,-1001.38,0.00030684,120]
[380082168,1755531598066,-2871.41,0.00030684,120]
[380082169,1755531598114,-400.0,0.00030684,120]
[380082170,1755531598163,-9613.63,0.00030684,120]
[380082171,1755531598211,-400.0,0.00030684,120]
[380082172,1755531598260,-400.0,0.00030684,120]
[380082173,1755531598306,-400.0,0.00030684,120]
[380082174,1755531598353,-174.35775032,0.00030684,120]
[380082175,1755531598399,-286.24,0.00030684,120]
[380082176,1755531598447,-400.0,0.00030684,120]
[380082177,1755531598491,-400.0,0.00030684,120]
[380082178,1755531598536,-6103.49,0.00030684,120]
[380082179,1755531598580,-1032.7,0.00030684,120]
[380082180,1755531598654,-400.0,0.00030684,120]
[380082181,1755531598729,-400.0,0.00030684,120]
[380082182,1755531598799,-1590.3,0.00030684,120]
[380082183,1755531598872,-400.0,0.00030684,120]
[380082184,1755531598949,-404.08,0.00030684,120]
[380082185,1755531599020,-922.62,0.00030684,120]
[380082186,1755531599093,-400.0,0.00030684,120]
[380082187,1755531599165,-1806.64,0.00030684,120]
[380082188,1755531599253,-1839.29,0.00030684,120]
[380082189,1755531599342,-400.0,0.00030684,120]
[380082190,1755531599423,-2138.74,0.00030684,120]
[380082191,1755531599526,-937.85,0.00030684,120]
[380082192,1755531599608,-400.0,0.00030684,120]
[380082193,1755531599702,-2191.76,0.00030684,120]
[380082194,1755531599775,-866.67,0.00030684,120]
[380082195,1755531599852,-400.0,0.00030684,120]
[380082196,1755531599922,-576.98,0.00030684,120]
[380082197,1755531600003,-400.0,0.00030684,120]
[380082198,1755531600102,-400.0,0.00030684,120]
[380082199,1755531600193,-400.0,0.00030684,120]
[380082200,1755531600283,-400.0,0.00030684,120]
[380082201,1755531600366,-400.0,0.00030684,120]
[380082202,1755531600439,-400.0,0.00030684,120]
[380082203,1755531600507,-400.0,0.00030684,120]
[380082204,1755531600574,-400.0,0.00030684,120]
[380082205,1755531600640,-821.24,0.00030684,120]
[380082206,1755531600708,-400.0,0.00030684,120]
[380082207,1755531600774,-400.0,0.00030684,120]
[380082208,1755531600839,-400.0,0.00030684,120]
[380082209,1755531600905,-945.91,0.00030684,120]
[380082210,1755531600979,-400.0,0.00030684,120]
[380082211,1755531601042,-250.05,0.00030684,120]
[380082212,1755531601105,-400.0,0.00030684,120]
[380082213,1755531601167,-2059.16,0.00030684,120]
[380082214,1755531601228,-400.0,0.00030684,120]
[380082215,1755531601287,-400.0,0.00030684,120]
[380082216,1755531601357,-2339.99,0.00030684,120]
[380082217,1755531601425,-400.0,0.00030684,120]
[380082218,1755531601488,-1388.0,0.00030684,120]
[380082219,1755531601549,-850.0,0.00030684,120]
[380082220,1755531601611,-725.74,0.00030684,120]
[380082221,1755531601670,-400.0,0.00030684,120]
[380082222,1755531601736,-462.2,0.00030684,120]
[380082223,1755531601797,-1083.62,0.00030684,120]
[380082224,1755531601862,-1915.22,0.00030684,120]
[380082225,1755531601924,-400.0,0.00030684,120]
[380082226,1755531601987,-400.0,0.00030684,120]
[380082227,1755531602046,-1533.59,0.00030684,120]
[380082228,1755531602106,-1164.85,0.00030684,120]
[380082229,1755531602169,-400.0,0.00030684,120]
[380082230,1755531602230,-400.0,0.00030684,120]
[380082231,1755531602291,-3338.99,0.00030684,120]
[380082232,1755531602352,-719.43,0.00030684,120]
[380082233,1755531602414,-400.0,0.00030684,120]
[380082234,1755531602475,-3124.15,0.00030684,120]
[380082235,1755531602536,-400.0,0.00030684,120]
[380082236,1755531602584,-400.0,0.00030684,120]
[380082237,1755531602634,-550.81,0.00030684,120]
[380082238,1755531602683,-570.12,0.00030684,120]
[380082239,1755531602729,-400.0,0.00030684,120]
[380082240,1755531602775,-400.0,0.00030684,120]
[380082241,1755531602823,-429.58,0.00030684,120]
[380082242,1755531602869,-3704.67,0.00030684,120]
[380082243,1755531602916,-649.5,0.00030684,120]
[380082244,1755531602963,-400.0,0.00030684,120]
[380082245,1755531603009,-727.89,0.00030684,120]
[380082246,1755531603069,-400.0,0.00030684,120]
[380082247,1755531603130,-400.0,0.00030684,120]
[380082248,1755531603189,-509.16,0.00030684,120]
[380082249,1755531603244,-501.82,0.00030684,120]
[380082250,1755531603302,-400.0,0.00030684,120]
[380082251,1755531603359,-3599.97,0.00030684,120]
[380082252,1755531603413,-400.0,0.00030684,120]
[380082253,1755531603468,-400.0,0.00030684,120]
[380082254,1755531603523,-652.56,0.00030684,120]
[380082255,1755531603579,-278.33,0.00030684,120]
[380082256,1755531603660,-215.52,0.00030684,120]
[380082257,1755531603780,-400.0,0.00030684,120]
[380082258,1755531603833,-400.0,0.00030684,120]
[380082259,1755531603884,-400.0,0.00030684,120]
[380082260,1755531603936,-400.0,0.00030684,120]
[380082261,1755531603993,-4041.87,0.00030684,120]
[380082262,1755531604046,-993.29,0.00030684,120]
[380082263,1755531604101,-2182.65,0.00030684,120]
[380082264,1755531604156,-400.0,0.00030684,120]
[380082265,1755531604209,-436.88,0.00030684,120]
[380082266,1755531604265,-536.12,0.00030684,120]
[380082267,1755531604321,-400.0,0.00030684,120]
[380082268,1755531604378,-400.0,0.00030684,120]
[380082269,1755531604433,-334.45,0.00030684,120]
[380082270,1755531605511,-482.9,0.00030684,120]
[380082271,1755531605623,-400.0,0.00030684,120]
[380082272,1755531605686,-1109.99,0.00030684,120]
[380082273,1755531605739,-400.0,0.00030684,120]
[380082274,1755531605795,-400.0,0.00030684,120]
[380082275,1755531605849,-654.36,0.00030684,120]
[380082276,1755531605899,-400.0,0.00030684,120]
[380082277,1755531605958,-400.0,0.00030684,120]
[380082278,1755531606011,-6711.55,0.00030684,120]
[380082279,1755531606063,-521.04901405,0.00030684,120]
[380082280,1755531606116,-625.81,0.00030684,120]
[380082281,1755531606168,-157.92,0.00030684,120]
[380082282,1755531606222,-400.0,0.00030684,120]
[380082283,1755531606278,-400.0,0.00030684,120]
[380082284,1755531606332,-1234.88,0.00030684,120]
[380082285,1755531606385,-400.0,0.00030684,120]
[380082286,1755531606437,-400.0,0.00030684,120]
[380082287,1755531606489,-400.0,0.00030684,120]
[380082288,1755531606543,-2099.38,0.00030684,120]
[380082289,1755531606594,-400.0,0.00030684,120]
[380082290,1755531606647,-400.0,0.00030684,120]
[380082291,1755531606699,-400.0,0.00030684,120]
[380082292,1755531606752,-400.0,0.00030684,120]
[380082293,1755531606807,-400.0,0.00030684,120]
[380082294,1755531606861,-214.32,0.00030684,120]
[380082295,1755531606914,-400.0,0.00030684,120]
[380082296,1755531606967,-400.0,0.00030684,120]
[380082297,1755531607020,-467.75,0.00030684,120]
[380082298,1755531607074,-560.58,0.00030684,120]
[380082299,1755531607139,-252.61,0.00030684,120]
[380082300,1755531607206,-3983.08,0.00030684,120]
[380082301,1755531607271,-1276.43,0.00030684,120]
[380082302,1755531607361,-400.0,0.00030684,120]
[380082303,1755531607418,-353.29,0.00030684,120]
[380082304,1755531607513,-1163.85,0.00030684,120]
[380082305,1755531607592,-400.0,0.00030684,120]
[380082306,1755531607655,-400.0,0.00030684,120]
[380082307,1755531607722,-499.9,0.00030684,120]
[380082308,1755531607795,-610.68,0.00030684,120]
[380082309,1755531607854,-896.63,0.00030684,120]
[380082310,1755531607910,-401.97774302,0.00030684,120]
[380082311,1755531607971,-3650.18,0.00030684,120]
[380082312,1755531608022,-1247.42,0.00030684,120]
[380082313,1755531608073,-400.0,0.00030684,120]
[380082314,1755531608125,-400.0,0.00030684,120]
[380082315,1755531608174,-400.0,0.00030684,120]
[380082316,1755531608225,-2137.2,0.00030684,120]
[380082317,1755531608277,-600.0,0.00030822,80]
[380082318,1755531608329,-400.0,0.00030958,120]
[380082319,1755531608381,-400.0,0.00030958,120]
[380082320,1755531608432,-400.0,0.00030958,120]
[380082321,1755531608481,-400.0,0.00030958,120]
[380082322,1755531608529,-381.7072292,0.00030958,120]
[380082323,1755531608580,-400.0,0.00030958,120]
[380082324,1755531608630,-400.0,0.00030958,120]
[380082325,1755531608680,-400.0,0.00030958,120]
[380082326,1755531608730,-401.13518832,0.00030958,120]
[380082327,1755531608777,-400.0,0.00030958,120]
[380082328,1755531608826,-400.0,0.00030958,120]
[380082329,1755531608878,-400.0,0.00030958,120]
[380082330,1755531608927,-500.0,0.00030958,120]
[380082331,1755531608975,-400.0,0.00030958,120]
[380082332,1755531609028,-400.0,0.00030958,120]
[380082333,1755531609080,-400.0,0.00030958,120]
[380082334,1755531609137,-222.41965188,0.00030958,120]
[380082335,1755531609269,-187.17572993,0.00030958,120]
[380082336,1755531609331,-400.0,0.00030958,120]
[380082337,1755531609388,-402.5799967,0.00030958,120]
[380082338,1755531609438,-400.0,0.00030958,120]
[380082339,1755531609490,-400.0,0.00030958,120]
[380082340,1755531609545,-728.98,0.00030958,120]
[380082341,1755531609598,-2118.21,0.00030958,120]
[380082342,1755531609651,-400.0,0.00030958,120]
[380082343,1755531609702,-794.34,0.00030958,120]
[380082344,1755531609754,-1423.77,0.00030958,120]
[380082345,1755531609808,-2691.56,0.00030958,120]
[380082346,1755531609862,-638.63,0.00030958,120]
[380082347,1755531609912,-449.93,0.00030958,120]
[380082348,1755531609965,-656.01,0.00030958,120]
[380082349,1755531610016,-2692.05,0.00030958,120]
[380082350,1755531610066,-400.0,0.00030958,120]
[380082351,1755531610117,-400.0,0.00030958,120]
[380082352,1755531610178,-400.0,0.00030958,120]
[380082353,1755531610228,-1016.43,0.00030958,120]
[380082354,1755531610284,-400.0,0.00030958,120]
[380082355,1755531610346,-841.86,0.00030958,120]
[380082356,1755531610398,-941.04,0.00030958,120]
[380082357,1755531610449,-400.0,0.00030958,120]
[380082358,1755531610501,-400.0,0.00030958,120]
[380082359,1755531610550,-442.02,0.00030958,120]
[380082360,1755531610598,-1404.07,0.00030958,120]
[380082361,1755531610649,-1392.43,0.00030958,120]
[380082362,1755531610698,-668.19,0.00030958,120]
[380082363,1755531610746,-400.0,0.00030958,120]
[380082364,1755531610793,-426.02,0.00030958,120]
[380082365,1755531610842,-400.0,0.00030958,120]
[380082366,1755531610891,-822.85,0.00030958,120]
[380082367,1755531610939,-1078.83,0.00030958,120]
[380082368,1755531610989,-400.0,0.00030958,120]
[380082369,1755531611047,-400.0,0.00030958,120]
[380082370,1755531611097,-400.0,0.00030958,120]
[380082371,1755531611145,-400.0,0.00030958,120]
[380082372,1755531611409,-460.79,0.00030958,120]
[380082373,1755531611456,-253.30072259,0.00030958,120]
[380082374,1755531611503,-1408.19,0.00030958,120]
[380082375,1755531611551,-1481.88,0.00030958,120]
[380082376,1755531611598,-400.0,0.00030958,120]
[380082377,1755531611648,-400.0,0.00030958,120]
[380082378,1755531611697,-400.0,0.00030958,120]
[380082379,1755531611749,-400.0,0.00030958,120]
[380082380,1755531611798,-400.0,0.00030958,120]
[380082381,1755531611846,-400.0,0.00030958,120]
[380082382,1755531611898,-400.0,0.00030958,120]
[380082383,1755531611946,-645.66,0.00030958,120]
[380082384,1755531611997,-1724.7,0.00030958,120]
[380082385,1755531612054,-2605.68,0.00030958,120]
[380082386,1755531612101,-1208.8,0.00030958,120]
[380082387,1755531612149,-400.0,0.00030958,120]
[380082388,1755531612197,-1463.54,0.00030958,120]
[380082389,1755531612245,-827.48,0.00030958,120]
[380082390,1755531612300,-400.0,0.00030958,120]
[380082391,1755531612351,-400.0,0.00030958,120]
[380082392,1755531612401,-333.69636951,0.00030958,120]
[380082393,1755531612452,-666.09,0.00030958,120]
[380082394,1755531612502,-400.0,0.00030958,120]
[380082395,1755531612551,-400.0,0.00030958,120]
[380082396,1755531612600,-400.0,0.00030958,120]
[380082397,1755531612651,-917.51,0.00030958,120]
[380082398,1755531612699,-400.0,0.00030958,120]
[380082399,1755531612750,-400.0,0.00030958,120]
[380082400,1755531612800,-259.513953,0.00030958,120]
[380082401,1755531612848,-1017.37,0.00030958,120]
[380082402,1755531612897,-400.0,0.00030958,120]
[380082403,1755531612949,-400.0,0.00030958,120]
[380082404,1755531613000,-585.94,0.00030958,120]
[380082405,1755531613050,-400.0,0.00030958,120]
[380082406,1755531613101,-400.0,0.00030958,120]
[380082407,1755531613176,-812.45,0.00030958,120]
[380082408,1755531613250,-206.20894646,0.00030958,120]
[380082409,1755531613308,-400.0,0.00030958,120]
[380082410,1755531613392,-423.65,0.00030958,120]
[380082411,1755531613570,-1993.07,0.00030958,120]
[380082412,1755531613622,-400.0,0.00030958,120]
[380082413,1755531613675,-400.0,0.00030958,120]
[380082414,1755531613728,-400.0,0.00030958,120]
[380082415,1755531613781,-1176.66,0.00030958,120]
[380082416,1755531613830,-400.0,0.00030958,120]
[380082417,1755531613877,-676.51,0.00030958,120]
[380082418,1755531613927,-1189.29,0.00030958,120]
[380082419,1755531613982,-400.0,0.00030958,120]
[380082420,1755531614033,-1738.42,0.00030958,120]
[380082421,1755531614083,-400.0,0.00030958,120]
[380082422,1755531614135,-403.51769539,0.00030958,120]
[380082423,1755531614188,-400.0,0.00030958,120]
[380082424,1755531614243,-478.52,0.00030958,120]
[380082425,1755531614299,-683.7,0.00030958,120]
[380082426,1755531614351,-400.0,0.00030958,120]
[380082427,1755531614401,-400.0,0.00030958,120]
[380082428,1755531614452,-408.9,0.00030958,120]
[380082429,1755531614503,-791.15,0.00030958,120]
[380082430,1755531614554,-400.0,0.00030958,120]
[380082431,1755531614606,-1281.91,0.00030958,120]
[380082432,1755531614656,-400.0,0.00030958,120]
[380082433,1755531614706,-760.18,0.00030958,120]
[380082434,1755531614757,-530.92213206,0.00030958,120]
[380082435,1755531614825,-447.86,0.00030958,120]
[380082436,1755531614900,-652.05,0.00030958,120]
[380082437,1755531614997,-1875.51,0.00030958,120]
[380082438,1755531615047,-400.0,0.00030958,120]
[380082439,1755531615096,-400.0,0.00030958,120]
[380082440,1755531615145,-659.58,0.00030958,120]
[380082441,1755531615203,-400.0,0.00030958,120]
[380082442,1755531615256,-616.57,0.00030958,120]
[380082443,1755531615310,-400.0,0.00030958,120]
[380082444,1755531615364,-400.0,0.00030958,120]
[380082445,1755531615423,-400.0,0.00030958,120]
[380082446,1755531615480,-400.0,0.00030958,120]
[380082447,1755531615533,-400.0,0.00030958,120]
[380082448,1755531615589,-857.02,0.00030958,60]
[380082449,1755531615649,-922.34,0.00030958,120]
[380082450,1755531615702,-400.0,0.00030958,120]
[380082451,1755531615882,-400.0,0.00030958,120]
[380082452,1755531615937,-400.0,0.00030958,120]
[380082453,1755531616003,-400.0,0.00030958,120]
[380082454,1755531616064,-400.0,0.00030958,120]
[380082455,1755531616117,-400.0,0.00030958,120]
[380082456,1755531616169,-400.0,0.00030958,120]
[380082457,1755531616241,-492.62474232,0.00030958,120]
[380082458,1755531616299,-400.0,0.00030958,120]
[380082459,1755531616351,-400.0,0.00030958,120]
[380082460,1755531616402,-400.0,0.00030958,120]
[380082461,1755531616453,-400.0,0.00030958,120]
[380082462,1755531616505,-769.02,0.00030958,120]
[380082463,1755531616556,-400.0,0.00030958,120]
[380082464,1755531616608,-997.39,0.00030958,120]
[380082465,1755531616660,-400.0,0.00030958,120]
[380082466,1755531616712,-626.4,0.00030958,120]
[380082467,1755531616765,-513.7,0.00030958,120]
[380082468,1755531616816,-2308.89,0.00030958,120]
[380082469,1755531616866,-1254.79,0.00030958,120]
[380082470,1755531616916,-2004.17,0.00030958,120]
[380082471,1755531616966,-400.0,0.00030958,120]
[380082472,1755531617015,-2066.12,0.00030958,120]
[380082473,1755531617067,-400.0,0.00030958,120]
[380082474,1755531617117,-1076.79,0.00030958,120]
[380082475,1755531617167,-400.0,0.00030958,120]
[380082476,1755531617219,-1331.65,0.00030958,120]
[380082477,1755531617268,-400.0,0.00030958,120]
[380082478,1755531617319,-433.2,0.00030958,120]
[380082479,1755531617370,-400.0,0.00030958,120]
[380082480,1755531617421,-1484.93,0.00030958,120]
[380082481,1755531617474,-2190.21,0.00030958,120]
[380082482,1755531617524,-400.0,0.00030958,120]
[380082483,1755531617574,-427.25,0.00030958,120]
[380082484,1755531617624,-400.0,0.00030958,120]
[380082485,1755531617674,-400.0,0.00030958,120]
[380082486,1755531617729,-461.92,0.00030958,120]
[380082487,1755531617779,-400.0,0.00030958,120]
[380082488,1755531617831,-400.0,0.00030958,120]
[380082489,1755531617881,-672.4,0.00030958,120]
[380082490,1755531617930,-1219.32,0.00030958,120]
[380082491,1755531617983,-400.0,0.00030958,120]
[380082492,1755531618032,-401.71416477,0.00030958,120]
[380082493,1755531618083,-400.0,0.00030958,120]
[380082494,1755531618135,-1234.43,0.00030958,120]
[380082495,1755531618187,-1124.58,0.00030958,120]
[380082496,1755531618238,-400.0,0.00030958,120]
[380082497,1755531618289,-663.57,0.00030958,120]
[380082498,1755531618344,-400.0,0.00030958,120]
[380082499,1755531618396,-571.42,0.00030958,120]
[380082500,1755531618447,-400.0,0.00030958,120]
[380082501,1755531618500,-400.0,0.00030958,120]
[380082502,1755531618554,-613.18,0.00030958,120]
[380082503,1755531618604,-400.0,0.00030958,120]
[380082504,1755531618653,-400.0,0.00030958,120]
[380082505,1755531618699,-400.0,0.00030958,120]
[380082506,1755531618747,-400.0,0.00030958,120]
[380082507,1755531618795,-400.0,0.00030958,120]
[380082508,1755531618843,-1009.99,0.00030958,120]
[380082509,1755531618892,-1723.56,0.00030958,120]
[380082510,1755531618941,-990.61,0.00030958,120]
[380082511,1755531618992,-400.0,0.00030958,120]
[380082512,1755531619047,-620.15,0.00030958,120]
[380082513,1755531619102,-866.99,0.00030958,120]
[380082514,1755531619151,-247.84376772,0.00030958,120]
[380082515,1755531619199,-400.0,0.00030958,120]
[380082516,1755531619249,-400.0,0.00030958,120]
[380082517,1755531619303,-400.0,0.00030958,120]
[380082518,1755531619358,-445.24,0.00030958,120]
[380082519,1755531619412,-637.19,0.00030958,120]
[380082520,1755531619465,-1012.03,0.00030958,120]
[380082521,1755531619517,-400.0,0.00030958,120]
[380082522,1755531619568,-1013.55,0.00030958,120]
[380082523,1755531619621,-172.38324864,0.00030958,120]
[380082524,1755531619670,-754.1,0.00030958,120]
[380082525,1755531619722,-400.0,0.00030958,120]
[380082526,1755531619777,-400.0,0.00030958,120]
[380082527,1755531619828,-400.0,0.00030958,120]
[380082528,1755531619878,-400.0,0.00030958,120]
[380082529,1755531619934,-400.0,0.00030958,120]
[380082530,1755531619991,-501.29,0.00030958,120]
[380082531,1755531620041,-1211.61,0.00030958,120]
[380082532,1755531620092,-1093.27,0.00030958,120]
[380082533,1755531620140,-400.0,0.00030958,120]
[380082534,1755531620189,-769.96,0.00030958,120]
[380082535,1755531620238,-691.44,0.00030958,120]
[380082536,1755531620285,-408.45,0.00030958,120]
[380082537,1755531620339,-1154.25,0.00030958,120]
[380082538,1755531620390,-400.0,0.00030958,120]
[380082539,1755531620448,-565.61,0.00030958,120]
[380082540,1755531620586,-2122.47,0.00030958,120]
[380082541,1755531620636,-453.83,0.00030958,120]
[380082542,1755531620684,-400.0,0.00030958,120]
[380082543,1755531620733,-400.0,0.00030958,120]
[380082544,1755531620780,-695.51,0.00030958,120]
[380082545,1755531620827,-400.0,0.00030958,120]
[380082546,1755531620876,-1385.92,0.00030958,120]
[380082547,1755531620924,-400.0,0.00030958,120]
[380082548,1755531620974,-400.0,0.00030958,120]
[380082549,1755531621026,-805.66,0.00030958,120]
[380082550,1755531621075,-400.0,0.00030958,120]
[380082551,1755531621127,-400.0,0.00030958,120]
[380082552,1755531621175,-1464.33,0.00030958,120]
[380082553,1755531621228,-400.0,0.00030958,120]
[380082554,1755531621276,-400.0,0.00030958,120]
[380082555,1755531621325,-534.82,0.00030958,120]
[380082556,1755531621373,-951.37,0.00030958,120]
[380082557,1755531621419,-400.0,0.00030958,120]
[380082558,1755531621466,-455.01,0.00030958,120]
[380082559,1755531621513,-1106.6,0.00030958,120]
[380082560,1755531621560,-400.0,0.00030958,120]
[380082561,1755531621607,-286.30705268,0.00030958,120]
[380082562,1755531621655,-400.0,0.00030958,120]
[380082563,1755531621706,-400.0,0.00030958,120]
[380082564,1755531621755,-400.0,0.00030958,120]
[380082565,1755531621805,-445.88,0.00030958,120]
[380082566,1755531621852,-400.0,0.00030958,120]
[380082567,1755531621899,-604.45,0.00030958,120]
[380082568,1755531622114,-400.0,0.00030958,120]
[380082569,1755531622162,-690.75,0.00030958,120]
[380082570,1755531622211,-400.0,0.00030958,120]
[380082571,1755531622262,-973.5,0.00030958,120]
[380082572,1755531622311,-400.0,0.00030958,120]